bitfinex-derivatives/quotes_ETHF0:USTF0_20250528
["timestamp","ask_amount","ask_price","bid_price","bid_amount"]
[1748450776007,3.2078,2637.6,2636.9,23.7487]
[1748450776199,3.2078,2637.6,2637.5,0.75804]
[1748450776595,2.5855,2637.8,2637.7,0.75798]
[1748450776801,3.2078,2637.9,2637.5,0.75804]
[1748450776802,3.2078,2637.9,2637.8,0.75795]
[1748450777899,3.2078,2637.9,2637.8,18.21295]
[1748450778410,0.11909174,2638.1,2638.0,0.75789]
[1748450781703,1.36409174,2638.1,2638.0,0.75789]
[1748450781904,0.75795,2637.9,2637.8,0.75794]
[1748450782110,3.2078,2637.9,2636.8,3.2078]
[1748450782299,1.89531,2637.2,2636.7,0.00569174]
[1748450782606,0.75822,2636.9,2636.8,0.75824]
[1748450782907,3.966,2637.0,2636.9,0.75821]
[1748450783216,3.2078,2637.0,2636.9,0.75821]
[1748450783602,0.75824,2636.8,2636.7,0.76395174]
[1748450783813,3.2078,2637.0,2636.8,0.75822]
[1748450784013,3.96601,2637.0,2636.9,0.75821]
[1748450785111,3.2078,2637.0,2636.7,0.00569174]
[1748450785308,0.75824,2636.8,2636.7,0.76395174]
[1748450785507,0.75823,2636.9,2636.8,0.75822]
[1748450785911,3.966,2637.0,2636.9,0.75821]
[1748450788114,3.2078,2637.0,2636.9,0.75821]
[1748450788418,1.3193,2637.1,2637.0,0.75818]
[1748450789711,3.96589,2637.4,2637.3,0.75809]
[1748450789712,3.2078,2637.4,2637.3,0.75809]
[1748450791811,3.96586,2637.4,2637.3,0.75809]
[1748450792008,1.2814,2637.6,2637.5,0.75804]
[1748450792411,1.2814,2637.6,2637.4,0.75804]
[1748450792611,0.75807,2637.5,2637.4,0.75804]
[1748450792810,0.75804,2637.5,2637.4,0.75804]
[1748450793011,2.03943,2637.6,2637.5,0.75804]
[1748450798821,3.34863,2637.6,2637.5,0.75804]
[1748450802718,0.75812,2637.3,2637.2,0.75808]
[1748450803327,2.09762,2637.3,2637.2,0.75808]
[1748450804326,3.2078,2637.4,2637.3,0.75809]
[1748450805834,3.96586,2637.4,2637.3,0.75809]
[1748450806330,1.89524,2637.3,2636.9,0.6644]
[1748450806521,0.75824,2636.8,2636.7,0.00569174]
[1748450807429,2.02334,2636.8,2636.7,0.00569174]
[1748450807627,2.02334,2636.8,2636.7,0.76396174]
[1748450809932,1.2651,2636.8,2636.7,0.76396174]
[1748450811132,1.2651,2636.8,2636.7,0.83860082]
[1748450811532,2.02334,2636.8,2636.7,0.83860082]
[1748450812135,2.02334,2636.8,2636.7,0.76396174]
[1748450812346,2.02334,2636.8,2636.7,0.00569174]
[1748450819035,2.02334,2636.8,2636.7,0.76396174]
[1748450819348,2.02334,2636.8,2636.7,0.08033082]
[1748450819533,0.75824,2636.9,2636.7,0.08033082]
[1748450819839,0.75821,2636.9,2636.8,1.9837]
[1748450820142,0.75821,2636.9,2636.8,3.39672]
[1748450820935,4.0797,2637.0,2636.9,0.75821]
[1748450821137,3.3215,2637.0,2636.9,2.08341]
[1748450822337,4.07968,2637.0,2636.9,2.08341]
[1748450822841,3.3215,2637.0,2636.9,2.08341]
[1748450823942,0.1137,2637.0,2636.9,2.08341]
[1748450824732,3.3215,2637.0,2636.8,0.75822]
[1748450824937,2.5172,2636.9,2636.8,0.75822]
[1748450825246,3.27541,2636.9,2636.8,0.75822]
[1748450825946,0.75824,2636.8,2636.7,2.07973174]
[1748450826148,3.27543,2636.9,2636.8,0.75824]
[1748450826363,3.27543,2636.9,2636.8,2.07404]
[1748450826737,1.2586,2636.9,2636.8,2.07404]
[1748450826946,0.1137,2637.0,2636.9,0.75821]
[1748450827148,0.1137,2637.0,2636.9,1.42721]
[1748450828841,0.1137,2637.0,2636.9,10.18721]
[1748450829242,0.1137,2637.0,2636.9,13.39501]
[1748450829547,0.1137,2637.0,2636.9,8.39501]
[1748450829949,0.1137,2637.0,2636.9,13.39501]
[1748450830345,0.1137,2637.0,2636.9,8.39501]
[1748450830545,3.2078,2637.6,2637.5,0.75804]
[1748450830846,4.5069,2638.0,2637.9,0.75792]
[1748450831049,5.26479,2638.0,2637.9,0.75792]
[1748450831252,6.54339,2638.0,2637.9,0.75792]
[1748450832350,0.75794,2637.9,2637.8,0.75793]
[1748450832548,2.03654,2637.9,2637.8,0.75793]
[1748450832753,4.5069,2638.0,2637.9,0.75792]
[1748450833050,3.2078,2638.0,2637.9,0.75792]
[1748450833553,0.11909174,2638.1,2638.0,0.75789]
[1748450835243,0.11909174,2638.1,2637.9,2.0277]
[1748450835447,5.26489,2638.0,2637.9,0.75792]
[1748450836044,4.507,2638.0,2637.9,0.75792]
[1748450836848,3.2078,2638.0,2637.9,0.75792]
[1748450837151,0.11909174,2638.1,2638.0,0.75789]
[1748450837445,1.74e-06,2638.1,2638.0,0.75789]
[1748450837646,1.74e-06,2638.1,2638.0,5.75789]
[1748450838750,1.74e-06,2638.1,2638.0,23.20789]
[1748450838952,1.74e-06,2638.1,2638.0,24.43219]
[1748450839151,1.74e-06,2638.1,2638.0,23.19119]
[1748450839351,1.74e-06,2638.1,2638.0,1.98219]
[1748450839550,1.74e-06,2638.1,2638.0,19.43119]
[1748450841445,1.74e-06,2638.1,2638.0,1.98219]
[1748450841640,1.74e-06,2638.1,2637.6,1.3115]
[1748450841848,3.2078,2637.9,2637.8,1.98411]
[1748450842045,3.96572,2637.9,2637.8,1.2262]
[1748450842240,5.20412,2637.9,2637.8,1.2262]
[1748450842446,5.20412,2637.9,2637.2,5.10306]
[1748450842447,0.75807,2637.5,2637.2,3.2078]
[1748450842642,0.75806,2637.4,2637.3,18.6944]
[1748450843047,0.6476,2637.6,2637.5,0.75804]
[1748450843251,3.8469,2637.9,2637.8,0.75795]
[1748450843451,1.2756,2638.0,2637.9,0.75792]
[1748450843949,1.74e-06,2638.1,2638.0,0.75789]
[1748450844355,1.27560174,2638.1,2638.0,0.75789]
[1748450844543,1.27560174,2638.1,2637.9,1.2474]
[1748450844850,1.27560174,2638.1,2637.3,17.447]
[1748450844851,1.89478,2638.0,2637.4,18.7439]
[1748450845050,3.9658,2637.7,2637.6,0.75798]
[1748450845254,3.2078,2637.7,2637.6,0.75798]
[1748450845649,1.74e-06,2638.1,2638.0,0.75789]
[1748450845957,5.84278174,2638.1,2638.0,0.75789]
[1748450846154,5.08490174,2638.1,2638.0,0.75789]
[1748450846351,5.08490174,2638.1,2637.9,0.7579]
[1748450846656,0.75791,2638.0,2637.9,0.75789]
[1748450846854,1.2224,2638.0,2637.9,0.75789]
[1748450847750,3.8625,2638.1,2638.0,0.75789]
[1748450848250,0.6547,2638.1,2638.0,0.75789]
[1748450848554,1.86141211,2638.3,2638.2,0.75783]
[1748450848949,0.00371211,2638.3,2638.2,0.75783]
[1748450851851,0.00371211,2638.3,2638.2,5.75783]
[1748450852059,3.2078,2639.0,2638.9,0.75763]
[1748450852553,3.2078,2639.4,2639.3,0.75752]
[1748450852762,4.4789,2639.4,2639.2,0.75753]
[1748450853058,0.75752,2639.3,2639.2,0.75753]
[1748450853250,1.2711,2639.3,2639.2,0.75753]
[1748450854057,3.2078,2639.4,2639.3,0.75752]
[1748450854758,3.28243908,2639.4,2639.3,0.75752]
[1748450855561,0.07463908,2639.4,2639.3,0.75752]
[1748450855858,2.11942908,2639.4,2639.3,0.75752]
[1748450856059,1.36193908,2639.4,2639.3,0.75752]
[1748450856463,2.11942908,2639.4,2639.3,0.75752]
[1748450857153,1.36193908,2639.4,2639.3,0.75752]
[1748450857950,1.2873,2639.4,2639.3,0.75752]
[1748450858957,1.36193908,2639.4,2639.3,0.75752]
[1748450860259,0.07463908,2639.4,2639.3,0.75752]
[1748450860956,2.11175,2639.6,2639.5,0.75746]
[1748450861156,1.3543,2639.6,2639.5,0.75746]
[1748450861351,1.3543,2639.6,2639.5,18.19646]
[1748450861758,3.2078,2639.7,2639.6,0.75743]
[1748450861965,3.2078,2639.7,2639.6,2.08353]
[1748450862354,1.3285,2639.8,2639.7,0.7574]
[1748450862554,1.3285,2639.8,2639.7,2.0835]
[1748450862964,0.6743,2639.8,2639.7,2.0835]
[1748450863264,0.07463908,2639.9,2639.8,0.75738]
[1748450863560,0.07463908,2639.9,2639.8,2.73418]
[1748450863958,3.2078,2640.1,2640.0,0.75732]
[1748450865755,3.96509,2640.1,2640.0,0.75732]
[1748450865956,3.96509,2640.1,2639.5,21.2604]
[1748450865957,5.10104,2640.1,2639.5,3.8214]
[1748450866167,1.9492,2640.0,2639.8,0.75736]
[1748450866350,0.75735,2639.9,2639.8,0.75736]
[1748450866661,0.7574,2639.7,2639.6,18.19443]
[1748450866857,1.38989,2639.8,2639.7,0.7574]
[1748450867856,0.6325,2639.8,2639.7,0.7574]
[1748450868058,1.38613,2640.0,2639.7,0.7574]
[1748450868059,0.6288,2640.0,2639.7,1.2609]
[1748450868260,0.6288,2640.0,2639.9,0.75735]
[1748450868461,1.8603,2640.0,2639.9,0.75735]
[1748450868664,0.6288,2640.0,2639.9,0.75735]
[1748450869857,1.9376,2640.0,2639.9,0.75735]
[1748450873760,1.9376,2640.0,2639.9,18.19035]
[1748450874160,0.6288,2640.0,2639.9,18.19035]
[1748450874665,1.922,2640.2,2640.1,0.75729]
[1748450876361,0.6751,2640.4,2640.1,0.75729]
[1748450876561,0.6751,2640.4,2640.3,0.75723]
[1748450876762,1.975,2640.4,2640.3,0.75723]
[1748450877270,2.7322,2640.4,2640.3,0.75723]
[1748450879364,0.75729,2640.2,2639.9,3.756]
[1748450879566,0.75734,2640.0,2639.9,0.75732]
[1748450879862,0.75734,2640.0,2639.8,17.431]
[1748450879863,2.68221,2640.1,2640.0,0.75732]
[1748450880067,1.37841,2640.1,2640.0,0.75732]
[1748450880671,1.8933,2640.0,2639.5,0.6354]
[1748450880871,3.2078,2639.6,2639.2,3.756]
[1748450881065,0.75752,2639.3,2639.2,4.51353]
[1748450881369,0.7575,2639.4,2639.3,0.75749]
[1748450881563,1.37856,2639.5,2639.4,0.75749]
[1748450881768,0.6211,2639.5,2639.4,0.75749]
[1748450882166,0.83201908,2639.8,2639.7,0.7574]
[1748450882371,0.75745,2639.7,2639.6,0.75742]
[1748450882571,0.75743,2639.7,2639.6,0.75741]
[1748450882871,0.75745,2639.6,2639.5,0.75743]
[1748450883065,0.75743,2639.7,2639.6,0.7574]
[1748450883470,3.28243908,2639.8,2639.7,0.7574]
[1748450883869,0.07463908,2639.8,2639.7,0.7574]
[1748450884272,0.6209,2640.0,2639.9,0.75735]
[1748450885163,1.37822,2640.0,2639.9,0.75735]
[1748450885365,0.6209,2640.0,2639.9,0.75735]
[1748450886374,3.2078,2640.1,2640.0,0.75732]
[1748450887068,0.6573,2640.4,2640.3,0.75723]
[1748450887260,1.4145,2640.4,2640.3,0.75723]
[1748450889175,0.6573,2640.4,2640.3,0.75723]
[1748450889775,1.4145,2640.4,2640.3,0.75723]
[1748450890070,0.6573,2640.4,2640.3,0.75723]
[1748450891067,1.4145,2640.4,2640.3,0.75723]
[1748450891370,0.6573,2640.4,2640.3,0.75723]
[1748450893973,1.4145,2640.4,2640.3,0.75723]
[1748450894178,0.6573,2640.4,2640.3,0.75723]
[1748450894673,1.281,2640.4,2640.3,0.75723]
[1748450897873,1.281,2640.4,2640.3,2.00823]
[1748450898376,3.2078,2640.6,2640.5,0.75717]
[1748450899173,2.5942,2640.8,2640.7,0.75712]
[1748450899479,3.35129,2640.8,2640.7,0.75712]
[1748450900177,3.35131,2640.8,2640.7,0.75712]
[1748450900976,2.5942,2640.8,2640.7,0.75712]
[1748450901280,2.5942,2640.8,2640.6,1.251]
[1748450901478,3.3513,2640.8,2640.7,0.75712]
[1748450903674,2.5942,2640.8,2640.7,0.75712]
[1748450904070,1.307,2640.8,2640.7,0.75712]
[1748450906382,3.2078,2640.9,2640.8,0.75709]
[1748450906681,3.96486,2640.9,2640.8,0.75709]
[1748450906881,5.20306,2640.9,2640.8,0.75709]
[1748450907084,4.446,2640.9,2640.5,0.00568085]
[1748450907281,3.96495,2640.6,2640.5,0.00568085]
[1748450908084,3.2078,2640.6,2640.5,0.76285085]
[1748450908280,5.84645,2640.6,2640.5,0.00568085]
[1748450910286,10.84645,2640.6,2640.5,0.00568085]
[1748450910582,5.84645,2640.6,2640.5,0.00568085]
[1748450911387,9.60045,2640.6,2640.5,0.00568085]
[1748450914788,9.67508908,2640.6,2640.5,0.00568085]
[1748450916782,1.89294,2640.5,2639.6,3.2078]
[1748450916982,3.96517,2639.9,2639.8,0.75735]
[1748450917189,3.2078,2639.9,2639.8,0.75735]
[1748450918887,3.96515,2639.9,2639.8,0.75735]
[1748450923297,3.2078,2639.9,2639.8,0.75735]
[1748450923591,3.2078,2639.9,2639.8,1.98685]
[1748450924695,3.96515,2639.9,2639.8,1.98685]
[1748450925484,0.7574,2639.7,2639.6,0.76309085]
[1748450925687,0.7574,2639.7,2639.6,0.00568085]
[1748450926090,2.0882,2639.7,2639.6,0.00568085]
[1748450926589,2.0882,2639.7,2639.6,0.76311085]
[1748450926996,2.0882,2639.7,2639.6,0.00568085]
[1748450930594,2.0882,2639.7,2639.6,0.76311085]
[1748450930899,2.0882,2639.7,2639.6,0.00568085]
[1748450931094,2.16283908,2639.7,2639.6,0.00568085]
[1748450934795,0.07463908,2639.7,2639.6,0.76311085]
[1748450935393,0.83203908,2639.7,2639.6,0.76311085]
[1748450936707,0.83203908,2639.7,2639.6,0.00568085]
[1748450937199,0.7574,2639.7,2639.6,0.00568085]
[1748450938104,0.83203908,2639.7,2639.6,0.00568085]
[1748450940107,0.83203908,2639.7,2639.6,0.76311085]
[1748450940699,2.12233908,2639.7,2639.6,0.76311085]
[1748450940999,2.12233908,2639.7,2639.6,0.00568085]
[1748450941299,0.75757,2639.2,2639.0,17.427]
[1748450941505,0.75757,2639.2,2639.1,2.10163]
[1748450942603,0.75757,2639.2,2639.1,19.52863]
[1748450942806,0.75757,2639.2,2639.1,2.10163]
[1748450943301,3.2078,2639.3,2639.1,2.10163]
[1748450943302,3.96534,2639.3,2639.2,0.75755]
[1748450944404,0.75755,2639.2,2639.1,1.3441]
[1748450944801,0.75755,2639.2,2639.1,2.10168]
[1748450946309,1.89945085,2639.4,2639.1,2.10168]
[1748450946310,0.00568085,2639.4,2639.3,0.75752]
[1748450947205,0.76317085,2639.4,2639.3,0.75752]
[1748450947810,0.00568085,2639.4,2639.3,0.75752]
[1748450948398,0.76317085,2639.4,2639.3,0.75752]
[1748450951612,0.00568085,2639.4,2639.3,0.75752]
[1748450952807,0.76317085,2639.4,2639.3,0.75752]
[1748450953306,0.00568085,2639.4,2639.3,0.75752]
[1748450955708,0.76317085,2639.4,2639.3,0.75752]
[1748450955903,0.75752,2639.3,2639.2,18.18253]
[1748450956108,0.75752,2639.3,2639.2,0.75753]
[1748450956408,1.42822,2639.3,2639.2,0.75753]
[1748450958307,1.42822,2639.3,2639.1,18.7691]
[1748450958308,0.75755,2639.2,2639.1,18.7691]
[1748450958610,0.7576,2639.1,2639.0,0.75758]
[1748450958915,3.9654,2639.1,2639.0,1.98648]
[1748450959309,2.03663908,2639.2,2639.1,0.75758]
[1748450959310,0.07463908,2639.2,2639.1,0.75758]
[1748450959509,0.76318085,2639.4,2639.3,0.75752]
[1748450960007,2.09758085,2639.4,2639.3,0.75752]
[1748450962519,0.76318085,2639.4,2639.3,0.75752]
[1748450962718,0.76318085,2639.4,2639.3,2.04432]
[1748450963714,0.76318085,2639.4,2639.3,1.2868]
[1748450964011,0.75752,2639.3,2639.2,1.2289]
[1748450964213,0.75761,2639.0,2638.9,0.00568085]
[1748450964411,0.75761,2639.0,2638.9,8.5e-07]
[1748450964723,6.88532008,2639.0,2638.9,8.5e-07]
[1748450964912,3.78926,2638.2,2637.2,3.2078]
[1748450965214,0.75806,2637.4,2637.3,1.3106]
[1748450965722,3.96585,2637.5,2637.3,1.3106]
[1748450965918,3.96586,2637.5,2637.4,0.75807]
[1748450966219,3.2078,2637.5,2637.4,0.75807]
[1748450966409,3.96586,2637.5,2637.3,1.3106]
[1748450966813,3.96586,2637.5,2637.4,0.75807]
[1748450967116,3.2078,2637.5,2637.4,0.75807]
[1748450967318,3.96584,2637.5,2637.4,0.75807]
[1748450967517,0.75806,2637.4,2637.3,2.06868]
[1748450967713,3.96585,2637.5,2637.4,0.75806]
[1748450968019,3.2078,2637.5,2637.4,0.75806]
[1748450968722,3.96584,2637.5,2637.4,0.75806]
[1748450968927,3.2078,2637.5,2637.4,0.75806]
[1748450975215,0.1137,2637.6,2637.5,0.75804]
[1748450975420,0.00568085,2637.7,2637.6,0.75801]
[1748450975620,0.00568085,2637.7,2637.6,3.33071]
[1748450975924,3.2078,2638.2,2638.1,0.75786]
[1748450977721,3.96563,2638.2,2638.1,0.75786]
[1748450978116,3.96566,2638.2,2638.1,0.75786]
[1748450978520,0.75788,2638.1,2637.9,1.296]
[1748450978723,2.06628,2638.1,2638.0,0.75787]
[1748450979624,0.75789,2638.0,2637.9,2.0539]
[1748450979818,2.10259,2638.0,2637.9,0.7579]
[1748450982016,1.3447,2638.0,2637.9,0.7579]
[1748450982922,2.10259,2638.0,2637.9,0.7579]
[1748450987320,3.2078,2638.2,2638.1,0.75786]
[1748450987922,3.96563,2638.2,2638.1,0.75786]
[1748450988932,1.89466,2638.1,2637.6,5.0267]
[1748450989131,0.75798,2637.8,2637.7,0.75795]
[1748450989430,0.75802,2637.7,2637.6,0.75798]
[1748450989630,2.08052,2637.7,2637.6,0.75798]
[1748450990127,0.75809,2637.3,2637.2,0.665]
[1748450990326,0.75804,2637.5,2637.4,0.75804]
[1748450990727,3.96583,2637.6,2637.5,0.75804]
[1748450991535,5.28833,2637.6,2637.5,0.75804]
[1748450998041,4.5303,2637.6,2637.5,0.75804]
[1748450998534,1.3225,2637.6,2637.5,0.75804]
[1748451000436,2.08051,2637.6,2637.5,0.75804]
[1748451000931,0.75806,2637.4,2637.3,2.02527]
[1748451001143,0.75806,2637.4,2637.3,0.75807]
[1748451001335,3.21753,2637.6,2637.1,1.25988085]
[1748451001336,0.75809,2637.3,2637.1,1.25988085]
[1748451001644,1.39822,2637.2,2637.1,0.00568085]
[1748451002133,2.62002,2637.2,2637.1,0.00568085]
[1748451002535,2.62002,2637.2,2637.1,0.76383085]
[1748451004337,0.6401,2637.2,2637.1,0.76383085]
[1748451004539,1.42919,2637.3,2637.2,0.75812]
[1748451004731,3.2078,2637.4,2637.3,0.75809]
[1748451004927,5.15011,2637.6,2637.5,0.75804]
[1748451005331,1.40211,2637.6,2637.5,0.75804]
[1748451005740,1.40211,2637.6,2637.5,2.06474]
[1748451006039,5.2248,2637.7,2637.6,0.75801]
[1748451006929,4.4668,2637.7,2637.6,0.75801]
[1748451007129,3.2078,2637.7,2637.6,0.75801]
[1748451007336,3.96578,2637.7,2637.6,1.37071]
[1748451007930,3.2078,2637.7,2637.6,18.80071]
[1748451008135,0.1137,2637.8,2637.7,0.75798]
[1748451008435,0.1137,2637.8,2637.7,5.74478]
[1748451008829,0.1137,2637.8,2637.7,8.95258]
[1748451009034,0.1137,2637.8,2637.7,19.42678]
[1748451013145,2.02483,2638.3,2638.2,0.75783]
[1748451015943,1.267,2638.3,2637.7,1.89492]
[1748451016241,0.75791,2638.0,2637.9,0.75789]
[1748451016743,2.08331,2638.0,2637.9,0.75789]
[1748451018748,1.3254,2638.0,2637.9,0.75789]
[1748451019748,3.2078,2638.1,2638.0,0.75789]
[1748451019944,3.96566,2638.1,2638.0,0.75789]
[1748451020646,0.75792,2638.0,2637.9,0.75789]
[1748451020845,2.00592,2638.0,2637.9,0.75789]
[1748451021255,1.248,2638.0,2637.6,0.6543]
[1748451021450,0.75804,2637.5,2637.4,1.42854]
[1748451021955,1.8715,2637.6,2637.5,0.75804]
[1748451022150,3.2078,2637.7,2637.6,0.75801]
[1748451022343,0.6498,2637.9,2637.8,0.75795]
[1748451022843,1.40772,2637.9,2637.8,0.75795]
[1748451023039,0.75804,2637.6,2637.4,0.6186]
[1748451023256,0.75804,2637.6,2637.5,0.75802]
[1748451023547,3.9658,2637.7,2637.6,0.75801]
[1748451023948,3.2078,2637.7,2637.6,0.75801]
[1748451024247,1.9458,2637.9,2637.8,0.75795]
[1748451025141,2.70372,2637.9,2637.8,0.75795]
[1748451025742,3.8313,2638.0,2637.9,0.75792]
[1748451025953,5.155,2638.3,2638.2,0.75783]
[1748451026254,6.53691,2638.3,2638.2,0.75783]
[1748451027547,0.75792,2638.0,2637.9,0.75789]
[1748451028753,0.75789,2638.1,2638.0,0.75785]
[1748451029849,0.75785,2638.2,2638.1,0.75784]
[1748451030062,2.05975,2638.2,2638.1,0.75784]
[1748451030352,1.3019,2638.2,2638.1,0.75784]
[1748451030847,1.3019,2638.2,2637.9,0.7579]
[1748451031048,0.75789,2638.0,2637.9,0.7579]
[1748451031249,0.75789,2638.0,2637.9,2.049]
[1748451031855,0.75792,2637.9,2637.8,1.41793]
[1748451032057,0.75792,2638.0,2637.9,0.75788]
[1748451032347,1.3019,2638.2,2638.1,0.75786]
[1748451033657,0.75789,2638.1,2638.0,0.75787]
[1748451035553,0.75789,2638.0,2637.9,2.04901]
[1748451035761,1.99729,2638.0,2637.9,2.04901]
[1748451037155,1.99729,2638.0,2637.9,2.04902]
[1748451038652,5.25602,2638.3,2637.9,2.04902]
[1748451038859,5.25602,2638.3,2638.2,0.75783]
[1748451041164,2.04822,2638.3,2638.2,0.75783]
[1748451044174,0.75783,2638.2,2638.1,2.07994]
[1748451045281,2.08943,2638.2,2638.1,2.07994]
[1748451045779,0.75792,2638.0,2637.9,0.75788]
[1748451045980,0.75792,2638.0,2637.9,18.17788]
[1748451046380,0.75792,2638.0,2637.9,19.49988]
[1748451046889,0.87159,2638.1,2638.0,0.75786]
[1748451047084,0.1137,2638.1,2638.0,1.99546]
[1748451047280,0.87156,2638.1,2638.0,1.99546]
[1748451050883,0.94619908,2638.1,2638.0,1.99546]
[1748451053884,0.87156,2638.1,2638.0,1.99546]
[1748451055087,0.87156,2638.1,2638.0,1.2376]
[1748451055289,0.87156,2638.1,2638.0,1.99549]
[1748451056987,0.75792,2638.0,2637.9,18.17589]
[1748451057184,0.75792,2637.9,2637.8,1.3419]
[1748451057387,1.43262,2637.9,2637.8,18.7599]
[1748451057789,1.43262,2637.9,2637.8,19.51785]
[1748451058082,0.6747,2637.9,2637.8,19.51785]
[1748451058579,0.1137,2638.1,2638.0,0.75789]
[1748451060199,0.1137,2638.1,2638.0,2.73779]
[1748451060785,0.00568085,2638.4,2638.3,0.75781]
[1748451061092,0.00568085,2638.4,2638.3,1.13701]
[1748451061290,0.00568085,2638.4,2638.3,6.13701]
[1748451061485,0.07463908,2638.7,2638.6,0.75772]
[1748451061693,0.07463908,2638.7,2638.6,21.92072]
[1748451061886,0.07463908,2638.7,2638.6,23.26682]
[1748451062088,5.1195,2639.3,2638.8,1.89415]
[1748451062283,0.75758,2639.2,2639.1,0.75757]
[1748451062488,0.7576,2639.1,2639.0,0.75759]
[1748451062791,0.7576,2639.0,2638.9,0.00568085]
[1748451062984,2.0881,2639.0,2638.9,0.00568085]
[1748451063190,2.0881,2639.0,2638.9,0.76331085]
[1748451063385,2.0881,2639.0,2638.9,18.18031085]
[1748451064991,2.16273908,2639.0,2638.9,17.42268085]
[1748451065293,2.16273908,2639.0,2638.9,18.18031085]
[1748451066195,1.40513908,2639.0,2638.9,18.18031085]
[1748451066495,0.07463908,2639.0,2638.9,18.18031085]
[1748451066982,0.83223908,2639.0,2638.9,18.18031085]
[1748451067589,0.07463908,2639.0,2638.9,18.18031085]
[1748451068691,0.83223908,2639.0,2638.9,0.00568085]
[1748451068896,0.83223908,2639.0,2638.9,18.17731085]
[1748451072486,0.07463908,2639.0,2638.9,18.17731085]
[1748451074494,0.00564457,2639.4,2639.3,0.75752]
[1748451074701,0.00564457,2639.4,2639.3,7.70632]
[1748451075501,0.00564457,2639.4,2639.3,9.01382]
[1748451078600,0.1136,2639.6,2639.5,0.75746]
[1748451079199,0.619,2640.1,2639.5,3.78732]
[1748451079399,0.619,2640.1,2640.0,0.75732]
[1748451079904,0.619,2640.1,2640.0,2.07022]
[1748451080902,1.9113,2640.1,2640.0,2.07022]
[1748451081304,2.66859,2640.1,2640.0,0.75732]
[1748451081505,0.75732,2640.0,2639.9,17.409]
[1748451081698,2.04962,2640.0,2639.9,17.409]
[1748451082003,1.2923,2640.0,2639.9,18.16633]
[1748451083001,1.2923,2640.0,2639.9,19.41203]
[1748451085504,1.2923,2640.0,2639.9,2.00303]
[1748451086195,2.04962,2640.0,2639.9,2.00303]
[1748451086399,1.2923,2640.0,2639.9,18.16133]
[1748451086802,2.04962,2640.0,2639.9,18.16133]
[1748451087007,2.04962,2640.0,2639.9,17.404]
[1748451087407,2.04962,2640.0,2639.9,18.16135]
[1748451088609,2.04962,2640.0,2639.9,0.75735]
[1748451088810,1.2923,2640.0,2639.9,18.16035]
[1748451089411,2.04962,2640.0,2639.9,18.16035]
[1748451089710,2.04962,2640.0,2639.9,0.75735]
[1748451089906,2.04962,2640.0,2639.9,18.16035]
[1748451090213,1.2923,2640.0,2639.9,18.16035]
[1748451090404,2.04962,2640.0,2639.9,18.16035]
[1748451090709,0.75736,2639.9,2639.8,0.75735]
[1748451091011,5.31936,2639.9,2639.8,0.75738]
[1748451091712,4.562,2639.9,2639.8,0.75738]
[1748451092013,5.31935,2639.9,2639.8,0.75738]
[1748451094514,5.39398908,2639.9,2639.8,0.75738]
[1748451096012,0.7574,2639.8,2639.7,0.75737]
[1748451096215,2.6482,2639.8,2639.7,0.75737]
[1748451097115,1.8908,2639.8,2639.7,0.75737]
[1748451098717,2.64817,2639.8,2639.7,18.15837]
[1748451099015,0.75745,2639.6,2639.5,0.75743]
[1748451099715,1.98065,2639.6,2639.5,0.75743]
[1748451099911,1.2232,2639.6,2639.5,0.75743]
[1748451100221,0.641,2639.7,2639.6,0.75743]
[1748451101009,0.641,2639.7,2639.6,2.10553]
[1748451102816,0.641,2639.7,2639.5,0.75744]
[1748451103018,1.2918,2639.6,2639.5,0.75746]
[1748451104509,2.04923,2639.6,2639.5,0.75746]
[1748451105219,1.2918,2639.6,2639.5,0.75746]
[1748451105513,0.6227,2639.8,2639.7,0.7574]
[1748451106017,1.9515,2639.8,2639.7,0.7574]
[1748451106416,0.75748,2639.5,2639.4,0.75746]
[1748451106615,3.96525,2639.6,2639.5,0.75746]
[1748451106818,3.2078,2639.6,2639.5,0.75746]
[1748451107020,0.75748,2639.5,2639.4,0.75747]
[1748451107220,0.6277,2639.5,2639.4,0.75747]
[1748451107724,1.38516,2639.5,2639.4,0.75747]
[1748451108915,0.6277,2639.5,2639.4,0.75747]
[1748451109108,1.38516,2639.5,2639.4,0.75747]
[1748451110116,0.75749,2639.4,2639.3,1.2374]
[1748451110418,0.75756,2639.2,2639.1,0.75754]
[1748451115828,1.37374,2639.3,2639.2,0.75755]
[1748451116928,0.75754,2639.3,2639.2,0.75755]
[1748451117532,0.75755,2639.2,2639.1,2.05446]
[1748451118431,0.75775,2638.5,2638.4,3.2078]
[1748451118628,3.96555,2638.5,2638.4,1.2856]
[1748451119128,2.6074,2638.6,2638.5,0.75775]
[1748451120027,3.36512,2638.6,2638.5,0.75775]
[1748451122221,1.2983,2638.6,2638.5,0.75775]
[1748451122628,2.05602,2638.6,2638.5,0.75775]
[1748451122827,0.75775,2638.5,2638.4,2.04335]
[1748451123030,2.11135,2638.5,2638.4,2.04335]
[1748451123635,2.05603,2638.6,2638.5,0.75775]
[1748451123834,2.05603,2638.6,2638.5,2.03695]
[1748451126036,2.13066908,2638.6,2638.5,2.03695]
[1748451126940,2.05603,2638.6,2638.5,2.03695]
[1748451127941,2.13066908,2638.6,2638.5,2.03695]
[1748451128940,2.05603,2638.6,2638.5,2.03695]
[1748451129440,2.05603,2638.6,2638.5,0.75775]
[1748451129741,3.34633,2638.6,2638.5,0.75775]
[1748451129939,2.66323908,2638.6,2638.5,0.75775]
[1748451130138,2.66323908,2638.6,2638.5,2.02185]
[1748451131646,0.07463908,2638.6,2638.5,2.02185]
[1748451133142,0.83235908,2638.6,2638.5,2.02185]